[Event "Early-Titled-Tuesday-Blitz-March-26-2024"]
[Site "Chess.com"]
[Date "2024.03.26"]
[Round "9"]
[White "noblerone"]
[Black "UK_23"]
[Result "1/2-1/2"]
[WhiteElo "2548"]
[BlackElo "2408"]
[TimeControl "180+1"]
[EndTime "9:44:57 PDT"]
[Termination "Game drawn by stalemate"]

1. d4 {[%clk 0:02:54.9]} 1... d5 {[%clk 0:03:00.2]} 2. Nf3 {[%clk 0:02:52.8]}
2... Nf6 {[%clk 0:03:00.5]} 3. Bg5 {[%clk 0:02:47.6]} 3... Ne4 {[%clk
0:03:00.1]} 4. Bf4 {[%clk 0:02:47.2]} 4... c5 {[%clk 0:02:56.7]} 5. e3 {[%clk
0:02:46.9]} 5... Qb6 {[%clk 0:02:53.2]} 6. Nc3 {[%clk 0:02:46.5]} 6... Qa5
{[%clk 0:02:52.1]} 7. Nd2 {[%clk 0:02:19.5]} 7... Nxc3 {[%clk 0:02:46.8]} 8.
bxc3 {[%clk 0:02:17.8]} 8... Qxc3 {[%clk 0:02:43.2]} 9. Bxb8 {[%clk 0:02:12.2]}
9... Rxb8 {[%clk 0:02:40.3]} 10. Bb5+ {[%clk 0:02:12.6]} 10... Bd7 {[%clk
0:02:40.4]} 11. Bxd7+ {[%clk 0:02:12.9]} 11... Kxd7 {[%clk 0:02:41.3]} 12. dxc5
{[%clk 0:01:52.5]} 12... e6 {[%clk 0:02:36.8]} 13. O-O {[%clk 0:01:51.8]} 13...
Bxc5 {[%clk 0:02:33.6]} 14. Ne4 {[%clk 0:01:24.8]} 14... Qc4 {[%clk 0:02:23.2]}
15. Nxc5+ {[%clk 0:01:01.5]} 15... Qxc5 {[%clk 0:02:24.1]} 16. e4 {[%clk
0:01:01.1]} 16... d4 {[%clk 0:02:10.2]} 17. Qg4 {[%clk 0:00:55.4]} 17... g6
{[%clk 0:02:02.7]} 18. Qf4 {[%clk 0:00:44.5]} 18... Ke7 {[%clk 0:01:45.7]} 19.
e5 {[%clk 0:00:44.6]} 19... Rhd8 {[%clk 0:01:18.1]} 20. Qf6+ {[%clk 0:00:42]}
20... Ke8 {[%clk 0:01:18.5]} 21. h4 {[%clk 0:00:40]} 21... h5 {[%clk 0:01:17.8]}
22. Rfd1 {[%clk 0:00:34.7]} 22... Rbc8 {[%clk 0:01:07]} 23. Rd2 {[%clk
0:00:33.2]} 23... Qe7 {[%clk 0:01:03.2]} 24. Qf4 {[%clk 0:00:32.2]} 24... Rc4
{[%clk 0:01:00.5]} 25. Rad1 {[%clk 0:00:30.3]} 25... Qd7 {[%clk 0:00:50.5]} 26.
Qf6 {[%clk 0:00:27.8]} 26... Qe7 {[%clk 0:00:50.8]} 27. Qh8+ {[%clk 0:00:26.9]}
27... Qf8 {[%clk 0:00:49.5]} 28. Qf6 {[%clk 0:00:27.2]} 28... Rd5 {[%clk
0:00:46.3]} 29. c3 {[%clk 0:00:25.4]} 29... Rxc3 {[%clk 0:00:22.5]} 30. Rxd4
{[%clk 0:00:24.5]} 30... Rxd4 {[%clk 0:00:22.5]} 31. Rxd4 {[%clk 0:00:25.4]}
31... Rc8 {[%clk 0:00:20.7]} 32. Qf3 {[%clk 0:00:21.8]} 32... Qe7 {[%clk
0:00:20.8]} 33. g3 {[%clk 0:00:20.1]} 33... Kf8 {[%clk 0:00:20.4]} 34. Qd3
{[%clk 0:00:18.5]} 34... Qc7 {[%clk 0:00:19.6]} 35. Qe3 {[%clk 0:00:15.2]} 35...
Qc1+ {[%clk 0:00:19.1]} 36. Qxc1 {[%clk 0:00:14.6]} 36... Rxc1+ {[%clk 0:00:20]}
37. Kg2 {[%clk 0:00:15.3]} 37... Ke7 {[%clk 0:00:20.5]} 38. Rb4 {[%clk
0:00:14.9]} 38... b6 {[%clk 0:00:20.7]} 39. a4 {[%clk 0:00:15.1]} 39... Rc5
{[%clk 0:00:20.5]} 40. f4 {[%clk 0:00:14.8]} 40... Ra5 {[%clk 0:00:20.6]} 41.
Kf3 {[%clk 0:00:14.8]} 41... Kd7 {[%clk 0:00:21.1]} 42. Rd4+ {[%clk 0:00:14.4]}
42... Kc7 {[%clk 0:00:21.6]} 43. Ke3 {[%clk 0:00:13.4]} 43... Rc5 {[%clk
0:00:21.8]} 44. Kd3 {[%clk 0:00:13.2]} 44... a6 {[%clk 0:00:22.3]} 45. Rb4
{[%clk 0:00:12.2]} 45... b5 {[%clk 0:00:22.5]} 46. axb5 {[%clk 0:00:12]} 46...
axb5 {[%clk 0:00:23.4]} 47. Kd4 {[%clk 0:00:11.3]} 47... Rd5+ {[%clk 0:00:23.2]}
48. Ke4 {[%clk 0:00:11.6]} 48... Kc6 {[%clk 0:00:24.1]} 49. Rb1 {[%clk
0:00:11.1]} 49... Rc5 {[%clk 0:00:24.6]} 50. Ra1 {[%clk 0:00:10.4]} 50... Rc4+
{[%clk 0:00:24.7]} 51. Kd3 {[%clk 0:00:11]} 51... Ra4 {[%clk 0:00:24.1]} 52.
Rc1+ {[%clk 0:00:10.7]} 52... Kd5 {[%clk 0:00:24.2]} 53. Rc8 {[%clk 0:00:10.8]}
53... Ra3+ {[%clk 0:00:24.6]} 54. Ke2 {[%clk 0:00:11.2]} 54... Rxg3 {[%clk
0:00:24.4]} 55. Rc7 {[%clk 0:00:11.8]} 55... Ke4 {[%clk 0:00:22.2]} 56. Rxf7
{[%clk 0:00:11.9]} 56... b4 {[%clk 0:00:22.7]} 57. Rf6 {[%clk 0:00:11.8]} 57...
b3 {[%clk 0:00:23.1]} 58. Rxe6 {[%clk 0:00:11.5]} 58... b2 {[%clk 0:00:23.1]}
59. Rb6 {[%clk 0:00:10.8]} 59... Kxf4 {[%clk 0:00:19.8]} 60. e6 {[%clk
0:00:10.6]} 60... Re3+ {[%clk 0:00:19]} 61. Kf2 {[%clk 0:00:10.7]} 61... Rxe6
{[%clk 0:00:18.4]} 62. Rxb2 {[%clk 0:00:10.3]} 62... Re4 {[%clk 0:00:18.2]} 63.
Rb6 {[%clk 0:00:08.9]} 63... Kf5 {[%clk 0:00:18.6]} 64. Kg3 {[%clk 0:00:08.9]}
64... Rg4+ {[%clk 0:00:18.8]} 65. Kh3 {[%clk 0:00:09.4]} 65... Rg1 {[%clk
0:00:19]} 66. Rb5+ {[%clk 0:00:09.5]} 66... Kf6 {[%clk 0:00:19.3]} 67. Rb6+
{[%clk 0:00:09.9]} 67... Kg7 {[%clk 0:00:19.3]} 68. Rb7+ {[%clk 0:00:10.8]}
68... Kh6 {[%clk 0:00:19.5]} 69. Rb6 {[%clk 0:00:11.4]} 69... Rg4 {[%clk
0:00:19.5]} 70. Ra6 {[%clk 0:00:11.3]} 70... Rc4 {[%clk 0:00:19.9]} 71. Rb6
{[%clk 0:00:11.4]} 71... Re4 {[%clk 0:00:19.9]} 72. Ra6 {[%clk 0:00:11.5]} 72...
Kg7 {[%clk 0:00:20.5]} 73. Ra7+ {[%clk 0:00:11.7]} 73... Kf6 {[%clk 0:00:20.6]}
74. Ra6+ {[%clk 0:00:12.3]} 74... Kf5 {[%clk 0:00:21.1]} 75. Ra5+ {[%clk
0:00:12.8]} 75... Re5 {[%clk 0:00:21.6]} 76. Ra3 {[%clk 0:00:13.1]} 76... Kf4
{[%clk 0:00:21.6]} 77. Ra6 {[%clk 0:00:09.9]} 77... Re3+ {[%clk 0:00:20.7]} 78.
Kh2 {[%clk 0:00:09.8]} 78... Kf5 {[%clk 0:00:21.2]} 79. Ra5+ {[%clk 0:00:08.7]}
79... Re5 {[%clk 0:00:20.4]} 80. Ra6 {[%clk 0:00:08.3]} 80... Rc5 {[%clk
0:00:18.8]} 81. Kg3 {[%clk 0:00:07.2]} 81... Rc3+ {[%clk 0:00:19]} 82. Kg2
{[%clk 0:00:07.7]} 82... Kg4 {[%clk 0:00:18.7]} 83. Rxg6+ {[%clk 0:00:07.3]}
83... Kxh4 {[%clk 0:00:19.6]} 84. Kh2 {[%clk 0:00:06.7]} 84... Rc2+ {[%clk
0:00:19.8]} 85. Kh1 {[%clk 0:00:06.6]} 85... Rc4 {[%clk 0:00:19.6]} 86. Rg1
{[%clk 0:00:06.8]} 86... Rg4 {[%clk 0:00:19.6]} 87. Rf1 {[%clk 0:00:07.3]} 87...
Kg3 {[%clk 0:00:19.7]} 88. Rg1+ {[%clk 0:00:07.2]} 88... Kh4 {[%clk 0:00:20]}
89. Rxg4+ {[%clk 0:00:06.1]} 89... hxg4 {[%clk 0:00:19.9]} 90. Kg2 {[%clk
0:00:06.4]} 90... g3 {[%clk 0:00:19.7]} 91. Kg1 {[%clk 0:00:06.5]} 91... Kh3
{[%clk 0:00:20.3]} 92. Kh1 {[%clk 0:00:06.8]} 92... g2+ {[%clk 0:00:21]} 93. Kg1
{[%clk 0:00:07.3]} 93... Kg3 {[%clk 0:00:21.6]} 1/2-1/2

[Event "Early-Titled-Tuesday-Blitz-March-26-2024"]
[Site "Chess.com"]
[Date "2024.03.26"]
[Round "9"]
[White "suyu28"]
[Black "GlavkonVVS"]
[Result "1-0"]
[WhiteElo "2855"]
[BlackElo "2638"]
[TimeControl "180+1"]
[EndTime "9:45:00 PDT"]
[Termination "suyu28 won by resignation"]

1. e4 {[%clk 0:02:53.2]} 1... Nf6 {[%clk 0:02:59]} 2. e5 {[%clk 0:02:52.1]} 2...
Nd5 {[%clk 0:02:59.1]} 3. d4 {[%clk 0:02:51.9]} 3... d6 {[%clk 0:02:59.4]} 4.
Nf3 {[%clk 0:02:42]} 4... Bg4 {[%clk 0:02:59]} 5. Bc4 {[%clk 0:02:32.8]} 5...
dxe5 {[%clk 0:02:57]} 6. dxe5 {[%clk 0:02:28.8]} 6... e6 {[%clk 0:02:55.1]} 7.
Qe2 {[%clk 0:02:22.6]} 7... Be7 {[%clk 0:02:32.5]} 8. Nbd2 {[%clk 0:02:12.3]}
8... Nd7 {[%clk 0:02:28.1]} 9. h3 {[%clk 0:01:58.4]} 9... Bf5 {[%clk 0:02:26.4]}
10. Ne4 {[%clk 0:01:53.2]} 10... N7b6 {[%clk 0:02:18.6]} 11. Bb3 {[%clk
0:01:50.3]} 11... a5 {[%clk 0:02:16.2]} 12. c4 {[%clk 0:01:35.9]} 12... Nb4
{[%clk 0:02:14.5]} 13. c5 {[%clk 0:01:25.6]} 13... Nd3+ {[%clk 0:02:00.8]} 14.
Kf1 {[%clk 0:01:24.4]} 14... Bxe4 {[%clk 0:01:45]} 15. Qxe4 {[%clk 0:01:23.8]}
15... Nxc5 {[%clk 0:01:44.1]} 16. Qe2 {[%clk 0:01:23.9]} 16... Qd3 {[%clk
0:01:27.8]} 17. Qxd3 {[%clk 0:01:19.7]} 17... Nxd3 {[%clk 0:01:28]} 18. Bc2
{[%clk 0:01:11.1]} 18... Nc5 {[%clk 0:01:18.4]} 19. Be3 {[%clk 0:01:04.6]} 19...
Nd5 {[%clk 0:01:16]} 20. Bd4 {[%clk 0:01:02.6]} 20... O-O {[%clk 0:01:10.4]} 21.
Rc1 {[%clk 0:01:02.6]} 21... b6 {[%clk 0:01:08.3]} 22. g3 {[%clk 0:01:01.1]}
22... Rfd8 {[%clk 0:01:07.4]} 23. Ke2 {[%clk 0:00:55.3]} 23... Nb4 {[%clk
0:01:07.3]} 24. Bb1 {[%clk 0:00:54.1]} 24... Nca6 {[%clk 0:00:53]} 25. a3 {[%clk
0:00:27.3]} 25... Nd5 {[%clk 0:00:52.6]} 26. Be4 {[%clk 0:00:18.2]} 26... c5
{[%clk 0:00:52.6]} 27. Be3 {[%clk 0:00:18.2]} 27... b5 {[%clk 0:00:51.2]} 28.
Bd2 {[%clk 0:00:12.9]} 28... b4 {[%clk 0:00:50.2]} 29. a4 {[%clk 0:00:11.4]}
29... Rac8 {[%clk 0:00:49.6]} 30. b3 {[%clk 0:00:10.6]} 30... f5 {[%clk
0:00:46.2]} 31. Bd3 {[%clk 0:00:10]} 31... Nb8 {[%clk 0:00:44.7]} 32. Rhd1
{[%clk 0:00:08.3]} 32... Nc6 {[%clk 0:00:44.8]} 33. Ba6 {[%clk 0:00:07.9]} 33...
Rc7 {[%clk 0:00:44.1]} 34. Bc4 {[%clk 0:00:07.1]} 34... h6 {[%clk 0:00:43.5]}
35. h4 {[%clk 0:00:07.3]} 35... Rcd7 {[%clk 0:00:42.3]} 36. h5 {[%clk
0:00:06.6]} 36... Kf7 {[%clk 0:00:41.6]} 37. Bb5 {[%clk 0:00:07]} 37... Rc7
{[%clk 0:00:40.8]} 38. Be1 {[%clk 0:00:07]} 38... Rdc8 {[%clk 0:00:40]} 39. Bc4
{[%clk 0:00:06.5]} 39... Nb6 {[%clk 0:00:39.7]} 40. Ba6 {[%clk 0:00:06.2]} 40...
Rd8 {[%clk 0:00:39.2]} 41. Bd3 {[%clk 0:00:05.4]} 41... Rd5 {[%clk 0:00:37.4]}
42. Bb5 {[%clk 0:00:04.8]} 42... Rxd1 {[%clk 0:00:37]} 43. Rxd1 {[%clk
0:00:04.8]} 43... Nd5 {[%clk 0:00:37.6]} 44. Rc1 {[%clk 0:00:04.8]} 44... Na7
{[%clk 0:00:34.7]} 45. Bc4 {[%clk 0:00:04.9]} 45... Nc8 {[%clk 0:00:35.1]} 46.
Ba6 {[%clk 0:00:03.5]} 46... Ncb6 {[%clk 0:00:35]} 47. Bd2 {[%clk 0:00:04]}
47... Rd7 {[%clk 0:00:32.6]} 48. Bb5 {[%clk 0:00:04.4]} 48... Rc7 {[%clk
0:00:32.6]} 49. Rc2 {[%clk 0:00:05]} 49... Nc8 {[%clk 0:00:27.5]} 50. Ne1 {[%clk
0:00:05.2]} 50... Na7 {[%clk 0:00:27.6]} 51. Bd3 {[%clk 0:00:05.2]} 51... Nc6
{[%clk 0:00:27.7]} 52. Nf3 {[%clk 0:00:04.4]} 52... Nb6 {[%clk 0:00:24.4]} 53.
Bb5 {[%clk 0:00:04.6]} 53... Nd7 {[%clk 0:00:23.8]} 54. Bf4 {[%clk 0:00:03.7]}
54... g5 {[%clk 0:00:22.1]} 55. hxg6+ {[%clk 0:00:03.9]} 55... Kxg6 {[%clk
0:00:22.4]} 56. Bc4 {[%clk 0:00:04.8]} 56... Nd8 {[%clk 0:00:20.4]} 57. Rd2
{[%clk 0:00:04.2]} 57... Bg5 {[%clk 0:00:20.5]} 58. Rd3 {[%clk 0:00:03.3]} 58...
Bxf4 {[%clk 0:00:20.4]} 59. gxf4 {[%clk 0:00:04.2]} 59... Kf7 {[%clk 0:00:20.6]}
60. Ke3 {[%clk 0:00:04.4]} 60... Nc6 {[%clk 0:00:20.8]} 61. Rd6 {[%clk
0:00:04.4]} 61... Nf8 {[%clk 0:00:19.6]} 62. Nh4 {[%clk 0:00:04.6]} 62... Ne7
{[%clk 0:00:19.3]} 63. f3 {[%clk 0:00:04.4]} 63... Rd7 {[%clk 0:00:19.4]} 64.
Ra6 {[%clk 0:00:04.1]} 64... Rd4 {[%clk 0:00:18.5]} 65. Rxa5 {[%clk 0:00:04]}
65... Nd5+ {[%clk 0:00:17.9]} 66. Bxd5 {[%clk 0:00:04.1]} 66... Rxd5 {[%clk
0:00:18.6]} 67. Ra7+ {[%clk 0:00:03.9]} 67... Nd7 {[%clk 0:00:18.6]} 68. Rc7
{[%clk 0:00:03.9]} 68... h5 {[%clk 0:00:18.2]} 69. a5 {[%clk 0:00:04.2]} 69...
Ke8 {[%clk 0:00:16.5]} 70. a6 {[%clk 0:00:04.8]} 70... Kd8 {[%clk 0:00:15.8]}
71. a7 {[%clk 0:00:05.3]} 71... Kxc7 {[%clk 0:00:15.9]} 72. a8=Q {[%clk
0:00:05.5]} 72... Nb6 {[%clk 0:00:15.8]} 73. Qa7+ {[%clk 0:00:05.8]} 73... Kc6
{[%clk 0:00:16]} 74. Ng6 {[%clk 0:00:06.5]} 74... c4 {[%clk 0:00:16.1]} 75. Ne7+
{[%clk 0:00:06.9]} 75... Kb5 {[%clk 0:00:16.6]} 76. Nxd5 {[%clk 0:00:07.4]}
76... exd5 {[%clk 0:00:17.1]} 77. e6 {[%clk 0:00:07.1]} 77... cxb3 {[%clk
0:00:17.1]} 78. e7 {[%clk 0:00:07.7]} 78... b2 {[%clk 0:00:17.5]} 79. e8=Q+
{[%clk 0:00:08.3]} 79... Kc4 {[%clk 0:00:17]} 80. Qc6+ {[%clk 0:00:08]} 80...
Kb3 {[%clk 0:00:16.8]} 81. Qaxb6 {[%clk 0:00:07.2]} 81... b1=Q {[%clk
0:00:16.7]} 82. Qxd5+ {[%clk 0:00:07.8]} 82... Ka3 {[%clk 0:00:15.8]} 83. Qba5+
{[%clk 0:00:08]} 83... Kb2 {[%clk 0:00:15.5]} 84. Qd4+ {[%clk 0:00:08.1]} 1-0

[Event "Early-Titled-Tuesday-Blitz-March-26-2024"]
[Site "Chess.com"]
[Date "2024.03.26"]
[Round "9"]
[White "imdvb6307"]
[Black "PepeCuenca"]
[Result "1/2-1/2"]
[WhiteElo "2519"]
[BlackElo "2725"]
[TimeControl "180+1"]
[EndTime "9:45:02 PDT"]
[Termination "Game drawn - insufficient material"]

1. d4 {[%clk 0:03:00.9]} 1... Nf6 {[%clk 0:02:59.7]} 2. Nf3 {[%clk 0:03:00.8]}
2... g6 {[%clk 0:03:00.2]} 3. c4 {[%clk 0:03:00.4]} 3... Bg7 {[%clk 0:03:00.3]}
4. Nc3 {[%clk 0:03:00.9]} 4... O-O {[%clk 0:03:00.3]} 5. e4 {[%clk 0:03:01.1]}
5... d6 {[%clk 0:03:01]} 6. Be2 {[%clk 0:03:01.5]} 6... Bg4 {[%clk 0:03:01.5]}
7. Be3 {[%clk 0:02:59.8]} 7... Nfd7 {[%clk 0:03:01.6]} 8. Ng1 {[%clk 0:02:59.5]}
8... Bxe2 {[%clk 0:03:01.5]} 9. Ngxe2 {[%clk 0:02:59.9]} 9... c5 {[%clk
0:03:00.8]} 10. f3 {[%clk 0:02:56.6]} 10... cxd4 {[%clk 0:02:59.2]} 11. Nxd4
{[%clk 0:02:56.1]} 11... Nc6 {[%clk 0:02:59.6]} 12. Qd2 {[%clk 0:02:44.1]} 12...
Rc8 {[%clk 0:02:51.1]} 13. b3 {[%clk 0:02:41.9]} 13... Re8 {[%clk 0:02:45.1]}
14. O-O {[%clk 0:02:29.6]} 14... a6 {[%clk 0:02:44.6]} 15. Kh1 {[%clk
0:02:11.7]} 15... Qa5 {[%clk 0:02:39.8]} 16. Rac1 {[%clk 0:01:59.7]} 16... Nxd4
{[%clk 0:02:17.1]} 17. Bxd4 {[%clk 0:01:59.4]} 17... Bxd4 {[%clk 0:02:18]} 18.
Qxd4 {[%clk 0:01:59.1]} 18... Qc5 {[%clk 0:02:18.6]} 19. Qxc5 {[%clk 0:01:33.3]}
19... Rxc5 {[%clk 0:02:15]} 20. a4 {[%clk 0:01:28.8]} 20... a5 {[%clk
0:02:01.3]} 21. Rcd1 {[%clk 0:01:17.8]} 21... Rec8 {[%clk 0:01:55.5]} 22. Rfe1
{[%clk 0:01:13]} 22... R5c6 {[%clk 0:01:42.3]} 23. Ne2 {[%clk 0:01:12.3]} 23...
Nc5 {[%clk 0:01:36]} 24. Nd4 {[%clk 0:01:11.5]} 24... Rb6 {[%clk 0:01:36]} 25.
Re3 {[%clk 0:01:11.8]} 25... Kf8 {[%clk 0:01:22.5]} 26. Nb5 {[%clk 0:01:04.6]}
26... Nd7 {[%clk 0:01:10.9]} 27. f4 {[%clk 0:00:56.3]} 27... Nc5 {[%clk
0:01:05.2]} 28. e5 {[%clk 0:00:47.6]} 28... dxe5 {[%clk 0:01:02.7]} 29. fxe5
{[%clk 0:00:46.8]} 29... Ke8 {[%clk 0:00:37]} 30. Rd5 {[%clk 0:00:44.9]} 30...
Ne6 {[%clk 0:00:23]} 31. Kg1 {[%clk 0:00:26.5]} 31... Ra6 {[%clk 0:00:13.6]} 32.
Rf3 {[%clk 0:00:25.7]} 32... Raa8 {[%clk 0:00:11.3]} 33. Kf2 {[%clk 0:00:23.9]}
33... Rd8 {[%clk 0:00:10.2]} 34. Ke3 {[%clk 0:00:21.5]} 34... Rac8 {[%clk
0:00:09.9]} 35. Rxd8+ {[%clk 0:00:18.2]} 35... Rxd8 {[%clk 0:00:08.5]} 36. Ke2
{[%clk 0:00:18.3]} 36... h5 {[%clk 0:00:07.9]} 37. g3 {[%clk 0:00:18.3]} 37...
Kf8 {[%clk 0:00:06.5]} 38. Rd3 {[%clk 0:00:18.3]} 38... Ke8 {[%clk 0:00:06]} 39.
Rxd8+ {[%clk 0:00:17.5]} 39... Kxd8 {[%clk 0:00:06.9]} 40. Kd3 {[%clk
0:00:16.7]} 40... Nc5+ {[%clk 0:00:06.9]} 41. Kc3 {[%clk 0:00:16.9]} 41... Kd7
{[%clk 0:00:06.5]} 42. Nd4 {[%clk 0:00:16.3]} 42... Kc7 {[%clk 0:00:05.1]} 43.
Kc2 {[%clk 0:00:15.5]} 43... Ne4 {[%clk 0:00:05.3]} 44. Kd3 {[%clk 0:00:14.4]}
44... Nf2+ {[%clk 0:00:05.8]} 45. Ke2 {[%clk 0:00:12.9]} 45... Ng4 {[%clk
0:00:06.7]} 46. Nf3 {[%clk 0:00:13.1]} 46... Kd7 {[%clk 0:00:05.4]} 47. Kd3
{[%clk 0:00:10.5]} 47... Nh6 {[%clk 0:00:03.8]} 48. Ke4 {[%clk 0:00:09.4]} 48...
Nf5 {[%clk 0:00:04.1]} 49. Kd5 {[%clk 0:00:09.5]} 49... b6 {[%clk 0:00:03.7]}
50. c5 {[%clk 0:00:09.4]} 50... e6+ {[%clk 0:00:03.7]} 51. Kc4 {[%clk
0:00:09.6]} 51... Kc6 {[%clk 0:00:03.2]} 52. cxb6 {[%clk 0:00:09.5]} 52... Kxb6
{[%clk 0:00:04.1]} 53. Nd4 {[%clk 0:00:08.3]} 53... Ne3+ {[%clk 0:00:03.9]} 54.
Kd3 {[%clk 0:00:07.5]} 54... Nd5 {[%clk 0:00:03.2]} 55. Kc4 {[%clk 0:00:07.2]}
55... Ne3+ {[%clk 0:00:03.2]} 56. Kd3 {[%clk 0:00:07.6]} 56... Ng4 {[%clk
0:00:04]} 57. Nf3 {[%clk 0:00:07]} 57... Kc5 {[%clk 0:00:04.4]} 58. Kc3 {[%clk
0:00:07.4]} 58... Kd5 {[%clk 0:00:03.9]} 59. b4 {[%clk 0:00:07.5]} 59... axb4+
{[%clk 0:00:04.8]} 60. Kxb4 {[%clk 0:00:07.7]} 60... Ke4 {[%clk 0:00:04.7]} 61.
a5 {[%clk 0:00:07.4]} 61... Kxf3 {[%clk 0:00:04.3]} 62. a6 {[%clk 0:00:07.8]}
62... Nxe5 {[%clk 0:00:05.2]} 63. Kb5 {[%clk 0:00:08.2]} 63... Ng4 {[%clk
0:00:02.2]} 64. a7 {[%clk 0:00:08.2]} 64... Nxh2 {[%clk 0:00:02.9]} 65. a8=Q+
{[%clk 0:00:08.1]} 65... Kxg3 {[%clk 0:00:03.8]} 66. Qe8 {[%clk 0:00:07.3]}
66... g5 {[%clk 0:00:03]} 67. Qxf7 {[%clk 0:00:07.4]} 67... h4 {[%clk
0:00:02.2]} 68. Qxe6 {[%clk 0:00:07.5]} 68... g4 {[%clk 0:00:02.5]} 69. Qe3+
{[%clk 0:00:07.7]} 69... Nf3 {[%clk 0:00:02.3]} 70. Qe4 {[%clk 0:00:06.4]} 70...
h3 {[%clk 0:00:02.6]} 71. Qe6 {[%clk 0:00:04.6]} 71... h2 {[%clk 0:00:02.9]} 72.
Qd6+ {[%clk 0:00:05]} 72... Kg2 {[%clk 0:00:03]} 73. Qg6 {[%clk 0:00:02.6]}
73... g3 {[%clk 0:00:02.6]} 74. Qc2+ {[%clk 0:00:02.5]} 74... Kh3 {[%clk
0:00:02]} 75. Qf5+ {[%clk 0:00:02.1]} 75... Kg2 {[%clk 0:00:02.3]} 76. Qc2+
{[%clk 0:00:02.1]} 76... Kg1 {[%clk 0:00:02.5]} 77. Qd1+ {[%clk 0:00:02.2]}
77... Kf2 {[%clk 0:00:02.6]} 78. Qc2+ {[%clk 0:00:02.5]} 78... Kf1 {[%clk
0:00:03]} 79. Qd3+ {[%clk 0:00:02.6]} 79... Kg2 {[%clk 0:00:02.2]} 80. Qe2+
{[%clk 0:00:02.5]} 80... Kg1 {[%clk 0:00:02.6]} 81. Qxf3 {[%clk 0:00:02.1]}
81... h1=Q {[%clk 0:00:02.7]} 82. Qxg3+ {[%clk 0:00:02.4]} 82... Qg2 {[%clk
0:00:03.1]} 83. Qxg2+ {[%clk 0:00:02.7]} 83... Kxg2 {[%clk 0:00:04]} 1/2-1/2